fUSD/lending_fUSD_20250110
["ID","MTS","AMOUNT","RATE_DAILY","PERIOD"]
[348391587,1736500253659,-150.0,0.00011047,2]
[348391588,1736500253669,-150.0,0.00011047,2]
[348391589,1736500253679,-1115.60265148,0.0001105,2]
[348391590,1736500253690,-151.0,0.00011091,2]
[348391591,1736500253700,-500.0,0.00011091,2]
[348391592,1736500253710,-530.0,0.00011091,2]
[348391593,1736500253720,-500.0,0.00011091,2]
[348391594,1736500253730,-500.0,0.00011091,2]
[348391595,1736500253740,-500.0,0.00011091,2]
[348391596,1736500253751,-624.9,0.00011091,2]
[348391597,1736500253761,-500.0,0.00011091,2]
[348391598,1736500253770,-582.78,0.00011091,2]
[348391599,1736500253780,-500.0,0.00011091,2]
[348391600,1736500253790,-500.0,0.00011091,2]
[348391601,1736500253800,-500.0,0.00011091,2]
[348391602,1736500253810,-500.0,0.00011091,2]
[348391603,1736500253819,-500.0,0.00011091,2]
[348391604,1736500253829,-500.0,0.00011091,2]
[348391605,1736500253838,-550.6620589,0.00011091,2]
[348391606,1736500253848,-500.0,0.00011091,2]
[348391607,1736500253858,-503.74,0.00011091,2]
[348391608,1736500253868,-500.0,0.00011091,2]
[348391609,1736500253878,-536.8986322,0.00011091,2]
[348391610,1736500253887,-500.0,0.00011091,2]
[348391611,1736500253896,-678.75,0.00011091,2]
[348391612,1736500253906,-470.64411478,0.00011091,2]
[348391613,1736500253916,-500.0,0.00011091,2]
[348391614,1736500253926,-500.0,0.00011091,2]
[348391615,1736500253935,-500.0,0.00011091,2]
[348391616,1736500253946,-500.0,0.00011091,2]
[348391617,1736500253956,-500.0,0.00011091,2]
[348391618,1736500253965,-500.0,0.00011091,2]
[348391619,1736500253976,-500.0,0.00011091,2]
[348391620,1736500253985,-500.0,0.00011091,2]
[348391621,1736500253995,-500.0,0.00011091,2]
[348391622,1736500254005,-500.0,0.00011091,2]
[348391623,1736500254014,-500.0,0.00011091,2]
[348391624,1736500254024,-500.0,0.00011091,2]
[348391625,1736500254033,-500.0,0.00011091,2]
[348391626,1736500254043,-500.0,0.00011091,2]
[348391627,1736500254053,-500.0,0.00011091,2]
[348391628,1736500254062,-500.0,0.00011091,2]
[348391629,1736500254072,-586.22,0.00011091,2]
[348391630,1736500254082,-679.11,0.00011091,2]
[348391631,1736500254092,-500.0,0.00011091,2]
[348391632,1736500254101,-500.0,0.00011091,2]
[348391633,1736500254111,-500.0,0.00011091,2]
[348391634,1736500254121,-500.0,0.00011091,2]
[348391635,1736500254131,-729.3,0.00011091,2]
[348391636,1736500254141,-563.4,0.00011091,2]
[348391637,1736500254151,-774.57,0.00011091,2]
[348391638,1736500254160,-706.5,0.00011091,2]
[348391639,1736500254171,-500.0,0.00011091,2]
[348391640,1736500254180,-500.0,0.00011091,2]
[348391641,1736500254190,-2056.74,0.00011091,2]
[348391642,1736500254200,-500.0,0.00011091,2]
[348391643,1736500254210,-500.0,0.00011091,2]
[348391644,1736500254219,-891.86,0.00011091,2]
[348391645,1736500254229,-1197.74,0.00011091,2]
[348391646,1736500254239,-500.0,0.00011091,2]
[348391647,1736500254249,-500.0,0.00011091,2]
[348391648,1736500254259,-940.96,0.00011091,2]
[348391649,1736500254269,-1578.38,0.00011091,2]
[348391650,1736500254278,-500.0,0.00011091,2]
[348391651,1736500254288,-1107.84,0.00011091,2]
[348391652,1736500254297,-500.0,0.00011091,2]
[348391653,1736500254307,-500.0,0.00011091,2]
[348391654,1736500254316,-664.6,0.00011091,2]
[348391655,1736500254326,-1029.02,0.00011091,2]
[348391656,1736500254336,-500.0,0.00011091,2]
[348391657,1736500254346,-1958.17,0.00011091,2]
[348391658,1736500254356,-1470.14,0.00011091,2]
[348391659,1736500254365,-2548.27,0.00011091,2]
[348391660,1736500254375,-6603.5,0.00011091,2]
[348391661,1736500254384,-1391.4,0.00011091,2]
[348391662,1736500254394,-500.0,0.00011091,2]
[348391663,1736500254403,-500.0,0.00011091,2]
[348391664,1736500254413,-500.0,0.00011091,2]
[348391665,1736500254423,-792.05,0.00011091,2]
[348391666,1736500254433,-695.08,0.00011091,2]
[348391667,1736500254444,-885.13,0.00011091,2]
[348391668,1736500254454,-1000.7,0.00011091,2]
[348391669,1736500254464,-1553.42,0.00011091,2]
[348391670,1736500254475,-500.0,0.00011091,2]
[348391671,1736500254485,-809.08,0.00011091,2]
[348391672,1736500254494,-1191.43,0.00011091,2]
[348391673,1736500254504,-500.0,0.00011091,2]
[348391674,1736500254514,-1806.5,0.00011091,2]
[348391675,1736500254524,-2573.85,0.00011091,2]
[348391676,1736500254534,-500.0,0.00011091,2]
[348391677,1736500254544,-434.396806,0.00011091,2]
[348391678,1736500254554,-1506.65,0.00011091,2]
[348391679,1736500254564,-736.48,0.00011091,2]
[348391680,1736500254574,-836.15,0.00011091,2]
[348391681,1736500254584,-2801.83,0.00011091,2]
[348391682,1736500254801,-887.99,0.00011091,2]
[348391683,1736500254811,-550.55,0.00011091,2]
[348391684,1736500254820,-2110.21,0.00011091,2]
[348391685,1736500254829,-986.48,0.00011091,2]
[348391686,1736500254838,-831.33,0.00011091,2]
[348391687,1736500254847,-433.582752,0.00011091,2]
[348391688,1736500254857,-1018.8,0.00011091,2]
[348391689,1736500254866,-500.0,0.00011091,2]
[348391690,1736500254876,-719.34,0.00011091,2]
[348391691,1736500254886,-771.41,0.00011091,2]
[348391692,1736500254896,-725.54,0.00011091,2]
[348391693,1736500254906,-1412.92,0.00011091,2]
[348391694,1736500254915,-500.0,0.00011091,2]
[348391695,1736500254925,-500.0,0.00011091,2]
[348391696,1736500254934,-1758.22,0.00011091,2]
[348391697,1736500254945,-837.48,0.00011091,2]
[348391698,1736500254955,-842.27,0.00011091,2]
[348391699,1736500254964,-1279.71,0.00011091,2]
[348391700,1736500254973,-563.06,0.00011091,2]
[348391701,1736500254983,-1085.96,0.00011091,2]
[348391702,1736500254992,-582.33,0.00011091,2]
[348391703,1736500255001,-251.60207739,0.00011091,2]
[348391704,1736500255010,-817.69,0.00011091,2]
[348391705,1736500255020,-1177.15,0.00011091,2]
[348391706,1736500255033,-757.84,0.00011091,2]
[348391707,1736500255043,-500.0,0.00011091,2]
[348391708,1736500255053,-1322.53,0.00011091,2]
[348391709,1736500255063,-3269.91,0.00011091,2]
[348391710,1736500255072,-500.0,0.00011091,2]
[348391711,1736500255082,-962.73,0.00011091,2]
[348391712,1736500255091,-500.0,0.00011091,2]
[348391713,1736500255101,-500.0,0.00011091,2]
[348391714,1736500255111,-807.38,0.00011091,2]
[348391715,1736500255120,-510.99,0.00011091,2]
[348391716,1736500255130,-986.68,0.00011091,2]
[348391717,1736500255140,-671.81,0.00011091,2]
[348391718,1736500255149,-151.0,0.00011092,2]
[348391719,1736500255158,-213.946268,0.00011092,2]
[348391720,1736500255167,-213.946268,0.00011092,2]
[348391721,1736500255176,-818.83,0.00011092,2]
[348391722,1736500255185,-500.0,0.00011092,2]
[348391723,1736500255195,-500.0,0.00011092,2]
[348391724,1736500255204,-1068.78,0.00011092,2]
[348391725,1736500255213,-2231.68,0.00011092,2]
[348391726,1736500255223,-579.53,0.00011092,2]
[348391727,1736500255232,-500.0,0.00011092,2]
[348391728,1736500255241,-779.52,0.00011092,2]
[348391729,1736500255251,-854.14,0.00011092,2]
[348391730,1736500255261,-761.22,0.00011092,2]
[348391731,1736500255270,-1070.48,0.00011092,2]
[348391732,1736500255280,-859.71,0.00011092,2]
[348391733,1736500255290,-855.15,0.00011092,2]
[348391734,1736500255299,-1327.36,0.00011092,2]
[348391735,1736500255309,-1140.93,0.00011092,2]
[348391736,1736500255318,-1385.89,0.00011092,2]
[348391737,1736500255328,-1284.44,0.00011092,2]
[348391738,1736500255338,-2300.59,0.00011092,2]
[348391739,1736500255347,-5548.96,0.00011092,2]
[348391740,1736500255358,-1000.0,0.00011092,2]
[348391741,1736500255367,-1015.53,0.00011092,2]
[348391742,1736500255377,-999.61,0.00011092,2]
[348391743,1736500255387,-500.0,0.00011092,2]
[348391744,1736500255397,-2178.98,0.00011092,2]
[348391745,1736500255407,-656.42,0.00011092,2]
[348391746,1736500255418,-754.55,0.00011092,2]
[348391747,1736500255428,-500.0,0.00011094,2]
[348391748,1736500255438,-500.0,0.00011094,2]
[348391749,1736500255447,-500.0,0.00011094,2]
[348391750,1736500255457,-500.0,0.00011094,2]
[348391751,1736500255466,-281.23826487,0.00011094,2]
[348391752,1736500255476,-500.0,0.00011094,2]
[348391753,1736500255486,-500.0,0.00011094,2]
[348391754,1736500255496,-722.5,0.00011094,2]
[348391755,1736500255505,-516.21798528,0.00011094,2]
[348391756,1736500255515,-647.0,0.00011094,2]
[348391757,1736500255525,-500.0,0.00011094,2]
[348391758,1736500255534,-500.0,0.00011094,2]
[348391759,1736500255544,-847.26,0.00011094,2]
[348391760,1736500255553,-598.14,0.00011094,2]
[348391761,1736500255563,-747.48,0.00011094,2]
[348391762,1736500255573,-500.0,0.00011094,2]
[348391763,1736500255582,-500.0,0.00011094,2]
[348391764,1736500255591,-500.0,0.00011094,2]
[348391765,1736500255601,-676.21,0.00011094,2]
[348391766,1736500255611,-519.68,0.00011094,2]
[348391767,1736500255621,-684.89,0.00011094,2]
[348391768,1736500255631,-500.0,0.00011094,2]
[348391769,1736500255640,-678.52,0.00011094,2]
[348391770,1736500255649,-500.0,0.00011094,2]
[348391771,1736500255659,-500.0,0.00011094,2]
[348391772,1736500255668,-500.0,0.00011094,2]
[348391773,1736500255678,-500.0,0.00011094,2]
[348391774,1736500255687,-500.0,0.00011094,2]
[348391775,1736500255696,-502.22,0.00011094,2]
[348391776,1736500255706,-500.0,0.00011094,2]
[348391777,1736500255716,-726.78,0.00011094,2]
[348391778,1736500255726,-3609.52,0.00011094,2]
[348391779,1736500255735,-516.38,0.00011094,2]
[348391780,1736500255745,-500.0,0.00011094,2]
[348391781,1736500255755,-515.94,0.00011094,2]
[348391782,1736500255765,-699.66,0.00011094,2]
[348391783,1736500255774,-500.0,0.00011094,2]
[348391784,1736500255784,-500.0,0.00011094,2]
[348391785,1736500255794,-780.6,0.00011094,2]
[348391786,1736500255803,-500.0,0.00011094,2]
[348391787,1736500255812,-500.0,0.00011094,2]
[348391788,1736500255822,-618.37,0.00011094,2]
[348391789,1736500255831,-798.41,0.00011094,2]
[348391790,1736500255840,-500.0,0.00011094,2]
[348391791,1736500255849,-780.76,0.00011094,2]
[348391792,1736500255859,-500.0,0.00011094,2]
[348391793,1736500255869,-839.05,0.00011094,2]
[348391794,1736500255879,-567.04,0.00011094,2]
[348391795,1736500255889,-500.0,0.00011094,2]
[348391796,1736500255898,-439.15715992,0.00011094,2]
[348391797,1736500256232,-282.96284008,0.00011094,2]
[348391798,1736500256242,-727.02,0.00011094,2]
[348391799,1736500256252,-500.0,0.00011094,2]
[348391800,1736500256262,-606.99060514,0.00011094,2]
[348391801,1736500256278,-192.70939486,0.00011094,2]
[348391802,1736500256288,-573.06,0.00011094,2]
[348391803,1736500256298,-541.26,0.00011094,2]
[348391804,1736500256308,-795.35,0.00011094,2]
[348391805,1736500256317,-211.72410961,0.00011094,2]
[348391806,1736500256329,-489.07589039,0.00011094,2]
[348391807,1736500256339,-662.09,0.00011094,2]
[348391808,1736500256349,-500.0,0.00011094,2]
[348391809,1736500256358,-1084.74,0.00011094,2]
[348391810,1736500256367,-624.1,0.00011094,2]
[348391811,1736500256377,-630.17,0.00011094,2]
[348391812,1736500256386,-500.0,0.00011094,2]
[348391813,1736500256396,-773.65,0.00011094,2]
[348391814,1736500256406,-941.95,0.00011094,2]
[348391815,1736500256416,-500.0,0.00011094,2]
[348391816,1736500256425,-606.38,0.00011094,2]
[348391817,1736500256435,-741.93,0.00011094,2]
[348391818,1736500256445,-3198.72,0.00011094,2]
[348391819,1736500256455,-500.0,0.00011094,2]
[348391820,1736500256465,-196.03164061,0.00011094,2]
[348391821,1736500256474,-924.89,0.00011094,2]
[348391822,1736500256484,-1983.31,0.00011094,2]
[348391823,1736500256494,-878.81,0.00011094,2]
[348391824,1736500256503,-2797.4,0.00011094,2]
[348391825,1736500256512,-660.89,0.00011094,2]
[348391826,1736500256521,-806.13,0.00011094,2]
[348391827,1736500256531,-1243.22,0.00011094,2]
[348391828,1736500256540,-500.0,0.00011094,2]
[348391829,1736500256550,-828.33,0.00011094,2]
[348391830,1736500256559,-1719.05,0.00011094,2]
[348391831,1736500256568,-874.32,0.00011094,2]
[348391832,1736500256578,-2691.14,0.00011094,2]
[348391833,1736500256588,-714.58,0.00011094,2]
[348391834,1736500256597,-1219.22,0.00011094,2]
[348391835,1736500256606,-500.0,0.00011094,2]
[348391836,1736500256615,-500.0,0.00011094,2]
[348391837,1736500256625,-876.12,0.00011094,2]
[348391838,1736500256634,-605.63,0.00011094,2]
[348391839,1736500256643,-500.0,0.00011094,2]
[348391840,1736500256653,-590.85,0.00011094,2]
[348391841,1736500256662,-500.0,0.00011094,2]
[348391842,1736500256672,-2537.41,0.00011094,2]
[348391843,1736500256681,-935.44,0.00011094,2]
[348391844,1736500256690,-704.75,0.00011094,2]
[348391845,1736500256700,-500.0,0.00011094,2]
[348391846,1736500256710,-575.78,0.00011094,2]
[348391847,1736500256719,-500.0,0.00011094,2]
[348391848,1736500256729,-635.55,0.00011094,2]
[348391849,1736500256738,-500.0,0.00011094,2]
[348391850,1736500256747,-755.21,0.00011094,2]
[348391851,1736500256757,-925.95,0.00011094,2]
[348391852,1736500256766,-855.59,0.00011094,2]
[348391853,1736500256775,-500.0,0.00011094,2]
[348391854,1736500256784,-1110.51,0.00011094,2]
[348391855,1736500256793,-500.0,0.00011094,2]
[348391856,1736500256803,-616.02,0.00011094,2]
[348391857,1736500256812,-675.22,0.00011094,2]
[348391858,1736500256821,-525.85351917,0.00011094,2]
[348391859,1736500256830,-564.66,0.00011094,2]
[348391860,1736500256840,-657.44,0.00011094,2]
[348391861,1736500256851,-2479.92,0.00011094,2]
[348391862,1736500256860,-1002.37,0.00011094,2]
[348391863,1736500256869,-500.0,0.00011094,2]
[348391864,1736500256879,-656.74,0.00011094,2]
[348391865,1736500256888,-519.3,0.00011094,2]
[348391866,1736500256897,-500.0,0.00011094,2]
[348391867,1736500256907,-500.0,0.00011094,2]
[348391868,1736500256975,-1068.96,0.00011094,2]
[348391869,1736500256985,-500.0,0.00011094,2]
[348391870,1736500256995,-906.27,0.00011095,2]
[348391871,1736500257004,-778.52,0.00011095,2]
[348391872,1736500257013,-1187.66,0.00011095,2]
[348391873,1736500257023,-1232.26,0.00011095,2]
[348391874,1736500257036,-1701.47,0.00011095,2]
[348391875,1736500257045,-1021.49,0.00011095,2]
[348391876,1736500257055,-3374.65,0.00011095,2]
[348391877,1736500257064,-1512.01,0.00011095,2]
[348391878,1736500257074,-150.0,0.00011095,2]
[348391879,1736500257083,-500.0,0.00011098,2]
[348391880,1736500257092,-17103.04222899,0.00011099,2]
[348391881,1736500257102,-17103.04222898,0.00011099,2]
[348391882,1736500257113,-17103.04222898,0.00011099,2]
[348391883,1736500257123,-17103.04222898,0.00011099,2]
[348391884,1736500257132,-17103.04222898,0.00011099,2]
[348391885,1736500257142,-173.835,0.00011099,2]
[348391886,1736500257151,-250.0,0.000111,2]
[348391887,1736500257160,-250.0,0.000111,2]
[348391888,1736500257169,-250.0,0.000111,2]
[348391889,1736500257178,-250.0,0.000111,2]
[348391890,1736500257188,-250.0,0.000111,2]
[348391891,1736500257197,-250.0,0.000111,2]
[348391892,1736500257207,-250.0,0.000111,2]
[348391893,1736500257216,-250.0,0.000111,2]
[348391894,1736500257226,-250.0,0.000111,2]
[348391895,1736500257235,-250.0,0.000111,2]
[348391896,1736500257244,-250.0,0.000111,2]
[348391897,1736500257254,-250.0,0.000111,2]
[348391898,1736500257263,-250.0,0.000111,2]
[348391899,1736500257272,-252.2,0.000111,2]
[348391900,1736500257281,-3711.70775994,0.00011141,2]
[348391901,1736500257290,-17103.04222898,0.00011175,2]
[348391902,1736500257299,-150.0,0.00011232,2]
[348391903,1736500257308,-3711.70775994,0.00011245,2]
[348391904,1736500257317,-150.0,0.00011292,2]
[348391905,1736500257327,-3711.70775994,0.00011348,2]
[348391906,1736500257337,-500.0,0.00011365,2]
[348391907,1736500257346,-530.0,0.00011365,2]
[348391908,1736500257356,-500.0,0.00011365,2]
[348391909,1736500257366,-500.0,0.00011365,2]
[348391910,1736500257376,-624.9,0.00011365,2]
[348391911,1736500257385,-500.0,0.00011365,2]
[348391912,1736500257395,-582.78,0.00011365,2]
[348391913,1736500257405,-500.0,0.00011365,2]
[348391914,1736500257414,-500.0,0.00011365,2]
[348391915,1736500257423,-500.0,0.00011365,2]
[348391916,1736500257433,-500.0,0.00011365,2]
[348391917,1736500257442,-500.0,0.00011365,2]
[348391918,1736500257451,-500.0,0.00011365,2]
[348391919,1736500257460,-500.0,0.00011365,2]
[348391920,1736500257469,-503.74,0.00011365,2]
[348391921,1736500257478,-500.0,0.00011365,2]
[348391922,1736500257487,-497.8,0.00011365,2]
[348391923,1736500257497,-678.75,0.00011365,2]
[348391924,1736500257507,-500.0,0.00011365,2]
[348391925,1736500257516,-500.0,0.00011365,2]
[348391926,1736500257525,-500.0,0.00011365,2]
[348391927,1736500257535,-500.0,0.00011365,2]
[348391928,1736500257544,-500.0,0.00011365,2]
[348391929,1736500257554,-500.0,0.00011365,2]
[348391930,1736500257564,-500.0,0.00011365,2]
[348391931,1736500257574,-500.0,0.00011365,2]
[348391932,1736500257584,-500.0,0.00011365,2]
[348391933,1736500257593,-500.0,0.00011365,2]
[348391934,1736500257602,-500.0,0.00011365,2]
[348391935,1736500257611,-500.0,0.00011365,2]
[348391936,1736500257620,-250.18527059,0.00011365,2]
[348391937,1736500257630,-500.0,0.00011365,2]
[348391938,1736500257639,-500.0,0.00011365,2]
[348391939,1736500257648,-500.0,0.00011365,2]
[348391940,1736500257658,-586.22,0.00011365,2]
[348391941,1736500257667,-679.11,0.00011365,2]
[348391942,1736500257677,-500.0,0.00011365,2]
[348391943,1736500257686,-500.0,0.00011365,2]
[348391944,1736500257697,-500.0,0.00011365,2]
[348391945,1736500257706,-500.0,0.00011365,2]
[348391946,1736500257716,-729.3,0.00011365,2]
[348391947,1736500257725,-563.4,0.00011365,2]
[348391948,1736500257735,-774.57,0.00011365,2]
[348391949,1736500257744,-706.5,0.00011365,2]
[348391950,1736500257753,-500.0,0.00011365,2]
[348391951,1736500257763,-500.0,0.00011365,2]
[348391952,1736500257772,-2056.74,0.00011365,2]
[348391953,1736500257782,-500.0,0.00011365,2]
[348391954,1736500257791,-500.0,0.00011365,2]
[348391955,1736500257800,-891.86,0.00011365,2]
[348391956,1736500257810,-1197.74,0.00011365,2]
[348391957,1736500257819,-500.0,0.00011365,2]
[348391958,1736500257828,-500.0,0.00011365,2]
[348391959,1736500257838,-940.96,0.00011365,2]
[348391960,1736500257847,-1578.38,0.00011365,2]
[348391961,1736500257857,-500.0,0.00011365,2]
[348391962,1736500257866,-1107.84,0.00011365,2]
[348391963,1736500257876,-500.0,0.00011365,2]
[348391964,1736500257886,-500.0,0.00011365,2]
[348391965,1736500257896,-664.6,0.00011365,2]
[348391966,1736500257905,-1029.02,0.00011365,2]
[348391967,1736500257915,-500.0,0.00011365,2]
[348391968,1736500257924,-1958.17,0.00011365,2]
[348391969,1736500257933,-1470.14,0.00011365,2]
[348391970,1736500257944,-2548.27,0.00011365,2]
[348391971,1736500257953,-6603.5,0.00011365,2]
[348391972,1736500257963,-1391.4,0.00011365,2]
[348391973,1736500257972,-500.0,0.00011365,2]
[348391974,1736500257981,-500.0,0.00011365,2]
[348391975,1736500257991,-500.0,0.00011365,2]
[348391976,1736500258000,-792.05,0.00011365,2]
[348391977,1736500258010,-695.08,0.00011365,2]
[348391978,1736500258019,-885.13,0.00011365,2]
[348391979,1736500258028,-1000.7,0.00011365,2]
[348391980,1736500258038,-1553.42,0.00011365,2]
[348391981,1736500258047,-500.0,0.00011365,2]
[348391982,1736500258057,-809.08,0.00011365,2]
[348391983,1736500258066,-1191.43,0.00011365,2]
[348391984,1736500258076,-500.0,0.00011365,2]
[348391985,1736500258086,-1806.5,0.00011365,2]
[348391986,1736500258095,-500.0,0.00011365,2]
[348391987,1736500258105,-2573.85,0.00011365,2]
[348391988,1736500258115,-434.396806,0.00011365,2]
[348391989,1736500258124,-1506.65,0.00011365,2]
[348391990,1736500258134,-736.48,0.00011365,2]
[348391991,1736500258143,-2801.83,0.00011365,2]
[348391992,1736500258153,-836.15,0.00011365,2]
[348391993,1736500258163,-887.99,0.00011365,2]
[348391994,1736500258172,-550.55,0.00011365,2]
[348391995,1736500258182,-2110.21,0.00011365,2]
[348391996,1736500258191,-986.48,0.00011365,2]
[348391997,1736500258201,-831.33,0.00011365,2]
[348391998,1736500258211,-433.582752,0.00011365,2]
[348391999,1736500258220,-1018.8,0.00011365,2]
[348392000,1736500258229,-500.0,0.00011365,2]
[348392001,1736500258238,-719.34,0.00011365,2]
[348392002,1736500258247,-771.41,0.00011365,2]
[348392003,1736500258257,-725.54,0.00011365,2]
[348392004,1736500258266,-1412.92,0.00011365,2]
[348392005,1736500258276,-500.0,0.00011365,2]
[348392006,1736500258285,-500.0,0.00011365,2]
[348392007,1736500258294,-1758.22,0.00011365,2]
[348392008,1736500258304,-837.48,0.00011365,2]
[348392009,1736500258313,-842.27,0.00011365,2]
[348392010,1736500258322,-1279.71,0.00011365,2]
[348392011,1736500258332,-563.06,0.00011365,2]
[348392012,1736500258341,-1085.96,0.00011365,2]
[348392013,1736500258351,-582.33,0.00011365,2]
[348392014,1736500258361,-817.69,0.00011365,2]
[348392015,1736500258370,-1177.15,0.00011365,2]
[348392016,1736500258379,-757.84,0.00011365,2]
[348392017,1736500258389,-500.0,0.00011365,2]
[348392018,1736500258398,-1322.53,0.00011365,2]
[348392019,1736500258408,-3269.91,0.00011365,2]
[348392020,1736500258417,-500.0,0.00011365,2]
[348392021,1736500258426,-962.73,0.00011365,2]
[348392022,1736500258437,-500.0,0.00011365,2]
[348392023,1736500258447,-500.0,0.00011365,2]
[348392024,1736500258457,-807.38,0.00011365,2]
[348392025,1736500258467,-510.99,0.00011365,2]
[348392026,1736500258476,-986.68,0.00011365,2]
[348392027,1736500258485,-671.81,0.00011365,2]
[348392028,1736500258495,-151.0,0.00011366,2]
[348392029,1736500258506,-818.83,0.00011366,2]
[348392030,1736500258515,-500.0,0.00011366,2]
[348392031,1736500258525,-500.0,0.00011366,2]
[348392032,1736500258535,-1068.78,0.00011366,2]
[348392033,1736500258545,-2231.68,0.00011366,2]
[348392034,1736500258555,-579.53,0.00011366,2]
[348392035,1736500258564,-500.0,0.00011366,2]
[348392036,1736500258575,-779.52,0.00011366,2]
[348392037,1736500258584,-854.14,0.00011366,2]
[348392038,1736500258594,-761.22,0.00011366,2]
[348392039,1736500258604,-1070.48,0.00011366,2]
[348392040,1736500258613,-859.71,0.00011366,2]
[348392041,1736500258622,-855.15,0.00011366,2]
[348392042,1736500258631,-1327.36,0.00011366,2]
[348392043,1736500258640,-1140.93,0.00011366,2]
[348392044,1736500258650,-1385.89,0.00011366,2]
[348392045,1736500258659,-1284.44,0.00011366,2]
[348392046,1736500258669,-2300.59,0.00011366,2]
[348392047,1736500258679,-5548.96,0.00011366,2]
[348392048,1736500258688,-1000.0,0.00011366,2]
[348392049,1736500258697,-1015.53,0.00011366,2]
[348392050,1736500258706,-999.61,0.00011366,2]
[348392051,1736500258715,-500.0,0.00011366,2]
[348392052,1736500258724,-2178.98,0.00011366,2]
[348392053,1736500258734,-656.42,0.00011366,2]
[348392054,1736500258743,-754.55,0.00011366,2]
[348392055,1736500258752,-152.722008,0.00011367,2]
[348392056,1736500258761,-500.0,0.00011368,2]
[348392057,1736500258770,-500.0,0.00011368,2]
[348392058,1736500258779,-500.0,0.00011368,2]
[348392059,1736500258788,-500.0,0.00011368,2]
[348392060,1736500258797,-500.0,0.00011368,2]
[348392061,1736500258807,-500.0,0.00011368,2]
[348392062,1736500258816,-722.5,0.00011368,2]
[348392063,1736500258825,-647.0,0.00011368,2]
[348392064,1736500258835,-500.0,0.00011368,2]
[348392065,1736500258844,-190.43478459,0.00011368,2]
[348392066,1736500258853,-847.26,0.00011368,2]
[348392067,1736500258864,-598.14,0.00011368,2]
[348392068,1736500258874,-747.48,0.00011368,2]
[348392069,1736500258883,-500.0,0.00011368,2]
[348392070,1736500258892,-500.0,0.00011368,2]
[348392071,1736500258901,-500.0,0.00011368,2]
[348392072,1736500258911,-676.21,0.00011368,2]
[348392073,1736500258920,-519.68,0.00011368,2]
[348392074,1736500258929,-684.89,0.00011368,2]
[348392075,1736500258938,-500.0,0.00011368,2]
[348392076,1736500258948,-678.52,0.00011368,2]
[348392077,1736500258957,-500.0,0.00011368,2]
[348392078,1736500258966,-500.0,0.00011368,2]
[348392079,1736500258976,-500.0,0.00011368,2]
[348392080,1736500258985,-500.0,0.00011368,2]
[348392081,1736500258994,-500.0,0.00011368,2]
[348392082,1736500259003,-502.22,0.00011368,2]
[348392083,1736500259012,-500.0,0.00011368,2]
[348392084,1736500259022,-726.78,0.00011368,2]
[348392085,1736500259034,-3609.52,0.00011368,2]
[348392086,1736500259044,-516.38,0.00011368,2]